bitfinex-derivatives/quotes_BNBF0:USTF0_20250810
["timestamp","ask_amount","ask_price","bid_price","bid_amount"]
[1754826224566,1.6453768,799.81,798.94,0.71004359]
[1754826224762,1.6453768,799.81,798.95,0.71004359]
[1754826224966,1.6453768,799.81,798.96,0.71004359]
[1754826225266,1.6453768,799.81,798.97,0.71004359]
[1754826225463,1.6453768,799.81,798.98,0.71004359]
[1754826225663,1.6453768,799.81,798.99,0.71004359]
[1754826225862,1.6453768,799.81,799.0,0.71004359]
[1754826226066,1.6453768,799.81,799.01,0.71004359]
[1754826226363,1.6453768,799.81,798.63,1.11810321]
[1754826226364,1.6453768,799.81,799.02,0.71004359]
[1754826226567,1.6453768,799.81,799.03,0.71004359]
[1754826226767,1.6453768,799.81,799.04,0.71004359]
[1754826227067,1.6453768,799.76,798.66,1.11810321]
[1754826227266,1.6453768,799.76,798.67,0.71015906]
[1754826227466,1.6453768,799.76,798.68,0.71015906]
[1754826227765,1.6453768,799.76,798.69,0.71015906]
[1754826227966,1.6453768,799.76,798.7,0.71015906]
[1754826228177,1.6453768,799.76,798.71,0.71015906]
[1754826228369,1.6453768,799.76,798.72,0.71015906]
[1754826228666,1.6453768,799.76,798.73,0.71015906]
[1754826228868,1.6453768,799.76,798.74,0.71015906]
[1754826229171,1.6453768,799.76,798.75,0.71015906]
[1754826229371,1.6453768,799.76,798.76,0.71015906]
[1754826229569,1.6453768,799.76,798.77,0.71015906]
[1754826229865,1.6453768,799.76,798.78,0.71015906]
[1754826230066,1.6453768,799.76,798.79,0.71015906]
[1754826230370,1.6453768,799.77,798.8,0.71015906]
[1754826230566,1.6453768,799.77,798.66,1.11810321]
[1754826230567,1.6453768,799.78,798.81,0.71015906]
[1754826230772,1.6453768,799.78,798.82,0.71015906]
[1754826230971,1.6453768,799.78,798.83,0.71015906]
[1754826231271,1.6453768,799.77,798.84,0.71015906]
[1754826231468,1.6453768,799.77,798.85,0.71015906]
[1754826231669,1.6453768,799.76,798.86,0.71015906]
[1754826231873,1.6453768,799.75,798.87,0.71015906]
[1754826232168,1.6453768,799.75,798.88,0.71015906]
[1754826232368,1.6453768,799.76,798.89,0.71015906]
[1754826232567,1.6453768,799.76,798.9,0.71015906]
[1754826232772,1.6453768,799.76,798.91,0.71015906]
[1754826233068,1.6453768,799.76,798.92,0.71015906]
[1754826233268,1.6453768,799.86,798.93,0.71015906]
[1754826233467,1.6453768,799.86,798.94,0.71015906]
[1754826233671,1.6453768,799.87,798.95,0.71015906]
[1754826233869,1.6453768,799.87,798.96,0.71015906]
[1754826234072,1.6453768,799.87,798.97,0.71015906]
[1754826234272,1.6453768,799.87,798.98,0.71015906]
[1754826234568,1.6453768,799.87,798.99,0.71015906]
[1754826234873,1.6453768,799.87,799.0,0.71015906]
[1754826235069,1.6453768,799.87,799.01,0.71015906]
[1754826235271,1.6453768,799.87,799.02,0.71015906]
[1754826235469,1.6453768,799.87,799.03,0.71015906]
[1754826235668,1.6453768,799.87,799.04,0.71015906]
[1754826235873,1.6453768,799.87,799.05,0.71015906]
[1754826236070,1.6453768,799.87,798.6,1.11810321]
[1754826236274,1.6453768,799.87,798.61,0.70997974]
[1754826236573,1.6453768,799.87,798.62,0.70997974]
[1754826236769,1.6453768,799.87,798.63,0.70997974]
[1754826236974,1.6453768,799.87,798.64,0.70997974]
[1754826237271,1.6453768,799.87,798.65,0.70997974]
[1754826237475,1.6453768,799.87,798.66,0.70997974]
[1754826237675,1.6453768,799.87,798.67,0.70997974]
[1754826237872,1.6453768,799.87,798.61,1.11810321]
[1754826237873,1.6453768,799.87,798.68,0.70997974]
[1754826238072,1.6453768,799.87,798.69,0.70997974]
[1754826238276,1.6453768,799.87,798.7,0.70997974]
[1754826238476,1.6453768,799.87,798.71,0.70997974]
[1754826238672,1.6453768,799.87,798.72,0.70997974]
[1754826238876,1.6453768,799.87,798.73,0.70997974]
[1754826239074,1.6453768,799.87,798.74,0.70997974]
[1754826239272,1.6453768,799.88,798.75,0.70997974]
[1754826239477,1.6453768,799.89,798.76,0.70997974]
[1754826239674,1.6453768,799.89,798.77,0.70997974]
[1754826239877,1.6453768,799.89,798.78,0.70997974]
[1754826240077,1.6453768,799.89,798.79,0.70997974]
[1754826240275,1.6453768,799.88,798.8,0.70997974]
[1754826240478,1.6453768,799.88,798.81,0.70997974]
[1754826240678,1.6453768,799.89,798.82,0.70997974]
[1754826240876,1.6453768,799.89,798.83,0.70997974]
[1754826241078,1.6453768,799.9,798.84,0.70997974]
[1754826241273,1.6453768,799.9,798.85,0.70997974]
[1754826241477,1.6453768,799.9,798.86,0.70997974]
[1754826241676,1.6453768,799.9,798.87,0.70997974]
[1754826241876,1.6453768,799.9,798.88,0.70997974]
[1754826242076,1.6453768,799.9,798.89,0.70997974]
[1754826242377,1.6453768,799.9,798.9,0.70997974]
[1754826242576,1.6453768,799.92,798.91,0.70997974]
[1754826242777,1.6453768,799.76,798.92,0.70997974]
[1754826242977,1.6453768,799.76,798.93,0.70997974]
[1754826243278,1.6453768,799.76,798.94,0.70997974]
[1754826243480,1.6453768,799.76,798.95,0.70997974]
[1754826243683,1.6453768,799.76,798.51,1.11810321]
[1754826243984,1.6453768,799.76,798.52,0.71035073]
[1754826244183,1.6453768,799.76,798.53,0.71035073]
[1754826244381,1.6453768,799.76,798.54,0.71035073]
[1754826244584,1.6453768,799.76,798.55,0.71035073]
[1754826244783,1.6453768,799.74,798.56,0.71035073]
[1754826244986,1.6453768,799.73,798.57,0.71035073]
[1754826245186,1.6453768,799.72,798.58,0.71035073]
[1754826245480,1.6453768,799.7,798.59,0.71035073]
[1754826245681,1.6453768,799.7,798.6,0.71035073]
[1754826245881,1.6453768,799.7,798.61,0.71035073]
[1754826246083,1.6453768,799.7,798.62,0.71035073]
[1754826246285,1.6453768,799.7,798.63,0.71035073]
[1754826246485,1.6453768,799.7,798.64,0.71035073]
[1754826246689,1.6453768,799.7,798.65,0.71035073]
[1754826246885,1.6453768,799.7,798.66,0.71035073]
[1754826247090,1.6453768,799.7,798.67,0.71035073]
[1754826247386,1.6453768,799.7,798.68,0.71035073]
[1754826247585,1.6453768,799.7,798.69,0.71035073]
[1754826247890,1.6453768,799.65,798.7,0.71035073]
[1754826248090,1.6453768,799.65,798.71,0.71035073]
[1754826248389,1.6453768,799.65,798.72,0.71035073]
[1754826248588,1.6453768,799.65,798.73,0.71035073]
[1754826248786,1.6453768,799.64,798.74,0.71035073]
[1754826248986,1.6453768,799.64,798.75,0.71035073]
[1754826249188,1.6453768,799.64,798.76,0.71035073]
[1754826249391,1.6453768,799.63,798.77,0.71035073]
[1754826249590,1.6453768,799.63,798.78,0.71035073]
[1754826249793,1.6453768,799.63,798.79,0.71035073]
[1754826249990,1.6453768,799.63,798.8,0.71035073]
[1754826250188,1.6453768,799.63,798.81,0.71035073]
[1754826250392,1.6453768,799.63,798.82,0.71035073]
[1754826250593,1.6453768,799.79,798.83,0.71035073]
[1754826250788,1.6453768,799.79,798.84,0.71035073]
[1754826250990,1.6453768,799.79,798.85,0.71035073]
[1754826251193,1.6453768,799.79,798.86,0.71035073]
[1754826251394,1.6453768,799.79,798.87,0.71035073]
[1754826251691,1.6453768,799.79,798.88,0.71035073]
[1754826251892,1.6453768,799.79,798.89,0.71035073]
[1754826252190,1.6453768,799.79,798.9,0.71035073]
[1754826252394,1.6453768,799.79,798.91,0.71035073]
[1754826252595,1.6453768,799.78,798.92,0.71035073]
[1754826252892,1.6453768,799.78,798.93,0.71035073]
[1754826253090,1.6453768,799.76,798.94,0.71035073]
[1754826253296,1.6453768,799.77,798.95,0.71035073]
[1754826253495,1.6453768,799.77,798.96,0.71035073]
[1754826253694,1.6453768,799.77,798.97,0.71035073]
[1754826253893,1.6453768,799.77,798.98,0.71035073]
[1754826254095,1.6453768,799.77,798.99,0.71035073]
[1754826254296,1.6453768,799.77,799.0,0.71035073]
[1754826254493,1.6453768,799.77,799.01,0.71035073]
[1754826254694,1.6453768,799.76,799.02,0.71035073]
[1754826254896,1.6453768,799.76,799.03,0.71035073]
[1754826255093,1.6453768,799.76,799.04,0.71035073]
[1754826255397,1.6453768,799.76,798.68,1.11810321]
[1754826255592,1.6453768,799.76,798.69,0.70871274]
[1754826255896,1.6453768,799.76,798.7,0.70871274]
[1754826256093,1.6453768,799.76,798.71,0.70871274]
[1754826256392,1.6453768,799.76,798.72,0.70871274]
[1754826256693,1.6453768,799.76,798.73,0.70871274]
[1754826256993,1.6453768,799.76,798.74,0.70871274]
[1754826257196,1.6453768,799.76,798.75,0.70871274]
[1754826257393,1.6453768,799.76,798.76,0.70871274]
[1754826257593,1.6453768,799.72,798.77,0.70871274]
[1754826257798,1.6453768,799.72,798.78,0.70871274]
[1754826258094,1.6453768,799.72,798.79,0.70871274]
[1754826258299,1.6453768,799.72,798.8,0.70871274]
[1754826258594,1.6453768,799.72,798.81,0.70871274]
[1754826258794,1.6453768,799.72,798.82,0.70871274]
[1754826258996,1.6453768,799.72,798.83,0.70871274]
[1754826259298,1.6453768,799.72,798.84,0.70871274]
[1754826259497,1.6453768,799.72,798.85,0.70871274]
[1754826259698,1.6453768,799.72,798.86,0.70871274]
[1754826259898,1.6453768,799.72,798.87,0.70871274]
[1754826260095,1.6453768,799.72,798.51,1.67715481]
[1754826260096,1.6453768,799.71,798.88,0.70871274]
[1754826260398,1.6453768,799.68,798.89,0.70871274]
[1754826260595,1.6453768,799.51,798.45,0.21726576]
[1754826260798,1.6453768,799.51,798.46,0.70890659]
[1754826260997,1.6453768,799.51,798.47,0.70890659]
[1754826261199,1.6453768,799.51,798.48,0.70890659]
[1754826261399,1.6453768,799.51,798.49,0.70890659]
[1754826261596,1.6453768,799.55,798.5,0.70890659]
[1754826261800,1.6453768,799.55,798.51,0.70890659]
[1754826262002,1.6453768,799.55,798.52,0.70890659]
[1754826262198,1.6453768,799.55,798.45,0.21726576]
[1754826262199,1.6453768,799.55,798.53,0.70890659]
[1754826262399,1.6453768,799.55,798.54,0.70890659]
[1754826262598,1.6453768,799.55,798.55,0.70890659]
[1754826262803,1.6453768,799.55,798.56,0.70890659]
[1754826262998,1.6453768,799.55,798.57,0.70890659]
[1754826263203,1.6453768,799.54,798.58,0.70890659]
[1754826263499,1.6453768,799.53,798.59,0.70890659]
[1754826263704,1.6453768,799.53,798.6,0.70890659]
[1754826264000,1.6453768,799.53,798.61,0.70890659]
[1754826264300,1.6453768,799.55,798.62,0.70890659]
[1754826264503,1.6453768,799.55,798.63,0.70890659]
[1754826264704,1.6453768,799.55,798.64,0.70890659]
[1754826264905,1.6453768,799.55,798.65,0.70890659]
[1754826265101,1.6453768,799.55,798.66,0.70890659]
[1754826265302,1.6453768,799.55,798.67,0.70890659]
[1754826265501,1.6453768,799.55,798.68,0.70890659]
[1754826265704,1.6453768,799.55,798.69,0.70890659]
[1754826265905,1.6453768,799.55,798.7,0.70890659]
[1754826266105,1.6453768,799.55,798.71,0.70890659]
[1754826266303,1.6453768,799.55,798.72,0.70890659]
[1754826266609,1.6453768,799.55,798.73,0.70890659]
[1754826266908,1.6453768,799.55,798.74,0.70890659]
[1754826267110,1.6453768,799.54,798.75,0.70890659]
[1754826267304,1.6453768,799.54,798.76,0.70890659]
[1754826267504,1.6453768,799.53,798.77,0.70890659]
[1754826267705,1.6453768,799.53,798.45,0.21726576]
[1754826267706,1.6453768,799.53,798.78,0.70890659]
[1754826267909,1.6453768,799.53,798.79,0.70890659]
[1754826268109,1.6453768,799.53,798.45,0.21726576]
[1754826268411,1.6453768,799.53,798.46,0.70916722]
[1754826268707,1.6453768,799.53,798.47,0.70916722]
[1754826268910,1.6453768,799.53,798.48,0.70916722]
[1754826269210,1.6453768,799.53,798.49,0.70916722]
[1754826269406,1.6453768,799.53,798.5,0.70916722]
[1754826269607,1.6453768,799.53,798.51,0.70916722]
[1754826269806,1.6453768,799.53,798.52,0.70916722]
[1754826270009,1.6453768,799.53,798.53,0.70916722]
[1754826270207,1.6453768,799.53,798.54,0.70916722]
[1754826270408,1.6453768,799.59,798.55,0.70916722]
[1754826270711,1.6453768,799.62,798.56,0.70916722]
[1754826270909,1.6453768,799.62,798.57,0.70916722]
[1754826271107,2.76773132,800.24,798.58,0.70916722]
[1754826271108,1.6453768,799.63,798.58,0.70916722]
[1754826271312,1.6453768,799.63,798.59,0.70916722]
[1754826271508,1.6453768,799.6,798.6,0.70916722]
[1754826271709,1.6453768,799.6,798.61,0.70916722]
[1754826271909,1.6453768,799.6,798.62,0.70916722]
[1754826272214,1.6453768,799.6,798.63,0.70916722]
[1754826272408,1.6453768,799.6,798.64,0.70916722]
[1754826272614,1.6453768,799.6,798.65,0.70916722]
[1754826272812,1.6453768,799.6,798.66,0.70916722]
[1754826273014,1.6453768,799.6,798.67,0.70916722]
[1754826273313,1.6453768,799.6,798.45,0.21726576]
[1754826273314,1.6453768,799.59,798.68,0.70916722]
[1754826273511,1.6453768,799.59,798.69,0.70916722]
[1754826273810,1.6453768,799.59,798.7,0.70916722]
[1754826274010,1.6453768,799.59,798.71,0.70916722]
[1754826274211,1.6453768,799.64,798.72,0.70916722]
[1754826274409,1.6453768,799.64,798.73,0.70916722]
[1754826274615,1.6453768,799.64,798.74,0.70916722]
[1754826274814,1.6453768,799.64,798.75,0.70916722]
[1754826275016,1.6453768,799.64,798.76,0.70916722]
[1754826275216,1.6453768,799.64,798.77,0.70916722]
[1754826275414,1.6453768,799.65,798.78,0.70916722]
[1754826275613,1.6453768,799.65,798.79,0.70916722]
[1754826275917,1.6453768,799.65,798.8,0.70916722]
[1754826276217,1.6453768,799.65,798.81,0.70916722]
[1754826276431,1.6453768,799.65,798.82,0.70916722]
[1754826276614,1.6453768,799.65,798.83,0.70916722]
[1754826276917,1.6453768,799.65,798.84,0.70916722]
[1754826277117,1.6453768,799.65,798.45,0.21726576]
[1754826277318,1.6453768,799.65,798.46,0.70914191]
[1754826277518,1.6453768,799.65,798.47,0.70914191]
[1754826277718,1.6453768,799.65,798.48,0.70914191]
[1754826278017,1.6453768,799.61,798.49,0.70914191]
[1754826278217,1.6453768,799.61,798.5,0.70914191]
[1754826278417,1.6453768,799.61,798.51,0.70914191]
[1754826278612,1.6453768,799.63,798.52,0.70914191]
[1754826278816,1.6453768,799.63,798.53,0.70914191]
[1754826279016,1.6453768,799.63,798.54,0.70914191]
[1754826279315,1.6453768,799.63,798.55,0.70914191]
[1754826279512,1.6453768,799.63,798.56,0.70914191]
[1754826279713,1.6453768,799.63,798.57,0.70914191]
[1754826279918,1.6453768,799.63,798.58,0.70914191]
[1754826280113,1.6453768,799.63,798.59,0.70914191]
[1754826280313,1.6453768,799.63,798.6,0.70914191]
[1754826280517,1.6453768,799.63,798.61,0.70914191]
[1754826280713,1.6453768,799.64,798.62,0.70914191]
[1754826280918,1.6453768,799.64,798.63,0.70914191]
[1754826281118,1.6453768,799.64,798.64,0.70914191]
[1754826281413,1.6453768,799.62,798.65,0.70914191]
[1754826281617,1.6453768,799.62,798.66,0.70914191]
[1754826281816,1.6453768,799.56,798.67,0.70914191]
[1754826282014,1.6453768,799.59,798.68,0.70914191]
[1754826282214,1.6453768,799.59,798.69,0.70914191]
[1754826282518,1.6453768,799.59,798.7,0.70914191]
[1754826282719,1.6453768,799.59,798.71,0.70914191]
[1754826283016,1.6453768,799.59,798.72,0.70914191]
[1754826283220,1.6453768,799.59,798.73,0.70914191]
[1754826283420,1.6453768,799.59,798.74,0.70914191]
[1754826283718,1.6453768,799.59,798.75,0.70914191]
[1754826283917,1.6453768,799.64,798.76,0.70914191]
[1754826284120,1.6453768,799.64,798.77,0.70914191]
[1754826284320,1.6453768,799.64,798.78,0.70914191]
[1754826284518,1.6453768,799.64,798.45,0.21726576]
[1754826284717,1.6453768,799.64,798.46,0.7088914]
[1754826284920,1.6453768,799.64,798.47,0.7088914]
[1754826285120,1.6453768,799.64,798.48,0.7088914]
[1754826285318,1.6453768,799.64,798.49,0.7088914]
[1754826285516,1.6453768,799.63,798.5,0.7088914]
[1754826285721,1.6453768,799.63,798.51,0.7088914]
[1754826286018,1.6453768,799.63,798.52,0.7088914]
[1754826286218,1.6453768,799.63,798.53,0.7088914]
[1754826286420,1.6453768,799.63,798.54,0.7088914]
[1754826286622,1.6453768,799.63,798.55,0.7088914]
[1754826286822,1.6453768,799.61,798.56,0.7088914]
[1754826287122,1.6453768,799.67,798.57,0.7088914]
[1754826287320,1.6453768,799.65,798.58,0.7088914]
[1754826287526,1.6453768,799.66,798.59,0.7088914]
[1754826287723,1.6453768,799.64,798.6,0.7088914]
[1754826287922,1.6453768,799.73,798.61,0.7088914]
[1754826288122,1.6453768,799.73,798.62,0.7088914]
[1754826288325,1.6453768,799.73,798.63,0.7088914]
[1754826288523,1.6453768,799.73,798.64,0.7088914]
[1754826288824,1.6453768,799.73,798.65,0.7088914]
[1754826289122,1.6453768,799.73,798.66,0.7088914]
[1754826289420,1.6453768,799.73,798.67,0.7088914]
[1754826289619,1.6453768,799.73,798.68,0.7088914]
[1754826289822,1.6453768,799.73,798.69,0.7088914]
[1754826290021,1.6453768,799.73,798.7,0.7088914]
[1754826290225,1.6453768,799.71,798.71,0.7088914]
[1754826290521,1.6453768,799.79,798.72,0.70895675]
[1754826290719,1.6453768,799.79,798.45,0.21726576]
[1754826290720,1.6453768,799.79,798.73,0.70895675]
[1754826290922,1.6453768,799.79,798.74,0.70895675]
[1754826291121,1.6453768,799.79,798.75,0.70895675]
[1754826291326,1.6453768,799.79,798.76,0.70895675]
[1754826291523,1.6453768,799.79,798.77,0.70895675]
[1754826291723,1.6453768,799.79,798.78,0.70895675]
[1754826291923,1.6453768,799.78,798.66,0.21743545]
[1754826292228,1.6453768,799.78,798.67,0.70891521]
[1754826292427,1.6453768,799.78,798.68,0.70891521]
[1754826292628,1.6453768,799.78,798.69,0.70891521]
[1754826292927,1.6453768,799.78,798.7,0.70891521]
[1754826293229,1.6453768,799.78,798.71,0.70891521]
[1754826293524,1.6453768,799.78,798.72,0.70891521]
[1754826293729,1.6453768,799.76,798.73,0.70891521]
[1754826293929,1.6453768,799.76,798.74,0.70891521]
[1754826294128,1.6453768,799.76,798.75,0.70891521]
[1754826294329,1.6453768,799.76,798.76,0.70891521]
[1754826294629,1.6453768,799.76,798.77,0.70891521]
[1754826294825,1.6453768,799.76,798.78,0.70891521]
[1754826295026,1.6453768,799.76,798.66,0.21743545]
[1754826295230,1.6453768,799.76,798.67,0.70892213]
[1754826295527,3.87482385,801.01,798.66,0.21743545]
[1754826295528,1.6453768,799.75,798.68,0.70892213]
[1754826295730,1.6453768,799.75,798.69,0.70892213]
[1754826295928,1.6453768,799.75,798.7,0.70892213]
[1754826296126,1.6453768,799.75,798.71,0.70892213]
[1754826296431,1.6453768,799.75,798.66,0.21743545]
[1754826296432,1.6453768,799.75,798.72,0.70892213]
[1754826296626,1.6453768,799.75,798.73,0.70892213]
[1754826296829,1.6453768,799.75,798.74,0.70892213]
[1754826297026,1.6453768,799.75,798.66,0.21743545]
[1754826297027,1.6453768,799.75,798.75,0.70892213]
[1754826297230,1.6453768,799.73,798.76,0.70892213]
[1754826297430,1.6453768,799.73,798.77,0.70892213]
[1754826297627,1.6453768,799.73,798.78,0.70892213]
[1754826297827,1.6453768,799.63,798.79,0.70892213]
[1754826298034,1.6453768,799.63,798.66,0.21743545]
[1754826298231,1.6453768,799.63,798.67,0.70895005]
[1754826298430,1.6453768,799.62,798.68,0.70895005]
[1754826298732,1.6453768,799.61,798.69,0.70895005]
[1754826298933,1.6453768,799.61,798.7,0.70895005]
[1754826299234,1.6453768,799.72,798.71,0.70895005]
[1754826299433,1.6453768,799.72,798.72,0.70895005]
[1754826299630,1.6453768,799.72,798.73,0.70895005]
[1754826299830,1.6453768,799.72,798.74,0.70895005]
[1754826300030,1.6453768,799.72,798.75,0.70895005]
[1754826300234,1.6453768,799.72,798.76,0.70895005]
[1754826300534,1.6453768,799.72,798.66,0.21743545]
[1754826300735,1.6453768,799.56,798.66,0.21743545]
[1754826301231,2.76773132,800.34,798.66,0.21743545]
[1754826301232,1.6453768,799.53,798.66,0.21743545]
[1754826301534,1.6453768,799.56,798.67,0.70907898]
[1754826301831,1.6453768,799.56,798.66,0.21743545]
[1754826302036,1.6453768,799.56,798.67,0.70919351]
[1754826302230,1.6453768,799.55,798.68,0.70932304]
[1754826302432,1.6453768,799.55,798.66,0.21743545]
[1754826302640,1.6453768,799.55,798.67,0.70930808]
[1754826302840,1.6453768,799.55,798.68,0.70930808]
[1754826303041,1.6453768,799.55,798.66,0.21743545]
[1754826303339,1.6453768,799.55,798.67,0.70934206]
[1754826303541,1.6453768,799.55,798.68,0.70934206]
[1754826303744,1.6453768,799.55,798.66,0.21743545]
[1754826303943,1.6453768,799.55,798.67,0.70932928]
[1754826304141,1.6453768,799.57,798.68,0.70932928]
[1754826304444,1.6453768,799.57,798.69,0.70932928]
[1754826304644,1.6453768,799.57,798.7,0.70932928]
[1754826304843,1.6453768,799.57,798.71,0.70932928]
[1754826305043,1.6453768,799.57,798.66,0.21743545]
[1754826305245,1.6453768,799.56,798.67,0.70944956]
[1754826305444,1.6453768,799.56,798.68,0.70944956]
[1754826305648,1.6453768,799.55,798.69,0.70944956]
[1754826305843,1.6453768,799.55,798.7,0.70944956]
[1754826306044,1.6453768,799.55,798.71,0.70944956]
[1754826306244,1.6453768,799.55,798.66,0.21743545]
[1754826306545,1.6453768,799.55,798.67,0.70946402]
[1754826306745,1.6453768,799.55,798.68,0.70946402]
[1754826306945,1.6453768,799.55,798.69,0.70946402]
[1754826307150,1.6453768,799.55,798.7,0.70946402]
[1754826307445,1.6453768,799.43,798.71,0.70946402]
[1754826307648,1.6453768,799.76,798.72,0.70949422]
[1754826307846,1.6453768,799.76,798.66,0.21743545]
[1754826307847,1.6453768,799.76,798.73,0.70949422]
[1754826308046,1.6453768,799.76,798.74,0.70949422]
[1754826308252,1.6453768,799.79,798.75,0.70949422]
[1754826308550,1.6453768,799.79,798.76,0.70949422]
[1754826308749,1.6453768,799.79,798.77,0.70949422]
[1754826308954,1.6453768,799.79,798.78,0.70949422]
[1754826309251,1.6453768,799.79,798.79,0.70949422]
[1754826309548,1.6453768,799.79,798.8,0.70949422]
[1754826309747,1.6453768,799.79,798.81,0.70949422]
[1754826309947,1.6453768,799.79,798.82,0.70949422]
[1754826310250,1.6453768,799.78,798.66,0.21743545]
[1754826310447,1.6453768,799.78,798.67,0.70900474]
[1754826310652,1.6453768,799.8,798.68,0.70900474]
[1754826310947,1.6453768,799.8,798.69,0.70900474]
[1754826311150,1.6453768,799.8,798.7,0.70900474]
[1754826311351,1.6453768,799.79,798.71,0.70900474]
[1754826311551,1.6453768,799.8,798.72,0.70900474]
[1754826311751,1.6453768,799.8,798.73,0.70900474]
[1754826311948,1.6453768,799.8,798.74,0.70900474]
[1754826312251,1.6453768,799.8,798.75,0.70900474]
[1754826312549,1.6453768,799.8,798.76,0.70900474]
[1754826312747,1.6453768,799.8,798.77,0.70900474]
[1754826312952,1.6453768,799.8,798.78,0.70900474]
[1754826313153,1.6453768,799.8,798.79,0.70900474]
[1754826313354,1.6453768,799.81,798.8,0.70900474]
[1754826313550,1.6453768,799.81,798.81,0.70900474]
[1754826313752,1.6453768,799.81,798.82,0.70900474]
[1754826313949,1.6453768,799.66,798.83,0.70900474]
[1754826314154,1.6453768,799.66,798.66,0.21743545]
[1754826314354,1.6453768,799.65,798.67,0.70927704]
[1754826314649,1.6453768,799.56,798.68,0.70927704]
[1754826314852,1.6453768,799.56,798.69,0.70927704]
[1754826315149,1.6453768,799.56,798.66,0.21743545]
[1754826315150,1.6453768,799.49,798.7,0.70927704]
[1754826315449,1.6453768,799.49,798.71,0.70927704]
[1754826315648,1.6453768,799.6,798.72,0.70927704]
[1754826315852,1.6453768,799.6,798.73,0.70927704]
[1754826316050,1.6453768,799.6,798.74,0.70927704]
[1754826316251,1.6453768,799.59,798.75,0.70927704]
[1754826316449,1.6453768,799.59,798.76,0.70927704]
[1754826316651,3.87482385,800.55,798.77,0.70927704]
[1754826316652,1.6453768,799.61,798.77,0.70927704]
[1754826316853,1.6453768,799.61,798.78,0.70927704]
[1754826317053,1.6453768,799.61,798.79,0.70927704]
[1754826317253,1.6453768,799.61,798.8,0.70927704]
[1754826317452,1.6453768,799.61,798.81,0.70927704]
[1754826317656,1.6453768,799.61,798.82,0.70927704]
[1754826317855,1.6453768,799.61,798.83,0.70927704]
[1754826318052,1.6453768,799.61,798.84,0.70927704]
[1754826318253,1.6453768,799.61,798.85,0.70927704]
[1754826318454,1.6453768,799.64,798.86,0.70927704]
[1754826318753,1.6453768,799.64,798.87,0.70927704]
[1754826318956,1.6453768,799.64,798.88,0.70927704]
[1754826319153,1.6453768,799.64,798.89,0.70927704]
[1754826319358,1.6453768,799.64,798.66,0.21743545]
[1754826319359,1.6453768,799.65,798.9,0.70927704]
[1754826319657,1.6453768,799.64,798.91,0.70927704]
[1754826319858,1.6453768,799.64,798.92,0.70927704]
[1754826320058,1.6453768,799.61,798.66,0.21743545]
[1754826320256,1.6453768,799.61,798.67,0.70916677]
[1754826320556,1.6453768,799.61,798.68,0.70916677]
[1754826320759,1.6453768,799.62,798.69,0.70916677]
[1754826320959,1.6453768,799.62,798.7,0.70916677]
[1754826321155,1.6453768,799.62,798.71,0.70916677]
[1754826321456,1.6453768,799.63,798.72,0.70916677]
[1754826321759,1.6453768,799.63,798.73,0.70916677]
[1754826321956,1.6453768,799.63,798.74,0.70916677]
[1754826322159,1.6453768,799.63,798.75,0.70916677]
[1754826322360,1.6453768,799.63,798.76,0.70916677]
[1754826322560,1.6453768,799.63,798.77,0.70916677]
[1754826322757,1.6453768,799.63,798.78,0.70916677]
[1754826322956,1.6453768,799.63,798.79,0.70916677]
[1754826323155,1.6453768,799.63,798.8,0.70916677]
[1754826323356,1.6453768,799.63,798.81,0.70916677]
[1754826323659,1.6453768,799.63,798.82,0.70916677]
[1754826323859,1.6453768,799.63,798.83,0.70916677]
[1754826324060,1.6453768,799.62,798.84,0.70916677]
[1754826324259,1.6453768,799.62,798.85,0.70916677]
[1754826324457,1.6453768,799.63,798.86,0.70916677]
[1754826324657,2.76773132,800.22,798.66,0.21743545]
[1754826324658,1.6453768,799.59,798.87,0.70916677]
[1754826324860,1.6453768,799.59,798.88,0.70916677]
[1754826325161,1.6453768,799.59,798.89,0.70916677]
[1754826325461,1.6453768,799.64,798.9,0.70916677]
[1754826325659,1.6453768,799.61,798.66,0.21743545]
[1754826325862,1.6453768,799.6,798.67,0.70876595]
[1754826326056,1.6453768,799.6,798.68,0.70876595]
[1754826326361,1.6453768,799.6,798.69,0.70876595]
[1754826326560,1.6453768,799.59,798.7,0.70876595]
[1754826326761,1.6453768,799.59,798.71,0.70876595]
[1754826327058,1.6453768,799.59,798.72,0.70876595]
[1754826327258,1.6453768,799.59,798.73,0.70876595]
[1754826327456,1.6453768,799.59,798.74,0.70876595]
[1754826327659,1.6453768,799.59,798.75,0.70876595]
[1754826327864,1.6453768,799.58,798.76,0.70876595]
[1754826328062,1.6453768,799.58,798.77,0.70876595]
[1754826328259,1.6453768,799.58,798.78,0.70876595]
[1754826328462,1.6453768,799.58,798.79,0.70876595]
[1754826328657,1.6453768,799.58,798.8,0.70876595]
[1754826328858,1.6453768,799.58,798.81,0.70876595]
[1754826329063,1.6453768,799.58,798.82,0.70876595]
[1754826329262,1.6453768,799.58,798.83,0.70876595]
[1754826329459,1.6453768,799.59,798.84,0.70876595]
[1754826329659,1.6453768,799.59,798.85,0.70876595]
[1754826329964,1.6453768,799.58,798.86,0.70876595]
[1754826330158,1.6453768,799.59,798.87,0.70876595]
[1754826330363,1.6453768,799.63,798.88,0.70876595]
[1754826330659,1.6453768,799.66,798.89,0.70897312]
[1754826330865,1.6453768,799.69,798.9,0.70897312]
[1754826331064,1.6453768,799.69,798.91,0.70897312]